fUST/lending_fUST_20260219
["ID","MTS","AMOUNT","RATE_DAILY","PERIOD"]
[405940430,1771430810135,-191.52147508,0.0001275,2]
[405940467,1771431032425,-912.47852492,0.00012623,2]
[405940468,1771431032434,-599.0,0.00012623,2]
[405940469,1771431032443,-205.28764678,0.00012751,2]
[405940470,1771431032452,-500.0,0.00013153,2]
[405940471,1771431032461,-500.0,0.00013273,2]
[405940472,1771431032470,-300.79503101,0.00013273,2]
[405940473,1771431032481,-200.36688811,0.00013273,2]
[405940474,1771431032490,-500.6339296,0.00013273,2]
[405940476,1771431032499,-500.0,0.00013273,2]
[405940478,1771431032508,-500.0,0.00013273,2]
[405940480,1771431032518,-500.0,0.00013273,2]
[405940482,1771431032527,-500.0,0.00013699,2]
[405940483,1771431032537,-367.09424959,0.00013699,2]
[405940500,1771431038843,-132.90575041,0.00013699,2]
[405940502,1771431038854,-500.0,0.00013699,2]
[405940504,1771431038864,-192.21106708,0.0001382,2]
[405940505,1771431038874,-405.65486483,0.0001382,2]
[405940506,1771431038887,-94.34513517,0.0001382,2]
[405940507,1771431038897,-500.0,0.0001382,2]
[405940508,1771431038907,-500.0,0.0001382,2]
[405940509,1771431038917,-500.0,0.0001382,2]
[405940510,1771431038926,-356.02806004,0.0001382,2]
[405940571,1771431040972,-310.8716835,0.00013562,2]
[405940574,1771431040983,-322.03406691,0.00013562,2]
[405940576,1771431040993,-162.90348191,0.0001382,2]
[405940578,1771431041002,-500.0,0.0001382,2]
[405940580,1771431041011,-500.0,0.0001382,2]
[405940581,1771431041020,-500.0,0.0001382,2]
[405940583,1771431041028,-65.14198454,0.0001382,2]
[405941205,1771431046612,-434.85801546,0.0001382,2]
[405941207,1771431046621,-500.0,0.0001382,2]
[405941208,1771431046631,-500.0,0.0001382,2]
[405941210,1771431046640,-560.08868718,0.0001382,2]
[405941212,1771431046651,-500.0,0.0001382,2]
[405941214,1771431046660,-500.0,0.0001382,2]
[405941216,1771431046669,-500.0,0.0001382,2]
[405941217,1771431046678,-500.0,0.0001382,2]
[405941219,1771431046688,-500.0,0.0001382,2]
[405941220,1771431046697,-500.0,0.0001382,2]
[405941222,1771431046708,-500.0,0.0001382,2]
[405941224,1771431046717,-500.0,0.0001382,2]
[405941226,1771431046727,-500.0,0.0001382,2]
[405941228,1771431046736,-500.0,0.0001382,2]
[405941229,1771431046746,-500.0,0.0001382,2]
[405941231,1771431046755,-568.1330341,0.0001382,2]
[405941233,1771431046764,-714.09001372,0.00013821,2]
[405941235,1771431046774,-358.73654042,0.00013821,2]
[405941237,1771431046783,-222.15552708,0.00013821,2]
[405941239,1771431046792,-211.3349548,0.00014245,2]
[405941240,1771431046801,-266.97793404,0.00014245,2]
[405941242,1771431046811,-326.50605517,0.00014247,2]
[405941244,1771431046820,-500.0,0.00014886,2]
[405941246,1771431046829,-500.0,0.0001574,2]
[405941248,1771431046844,-500.0,0.00016222,2]
[405941250,1771431046853,-500.0,0.00016432,2]
[405941252,1771431046862,-500.0,0.00016438,2]
[405941254,1771431046871,-600.0,0.00016761,2]
[405941256,1771431046881,-500.0,0.00017073,2]
[405941258,1771431046891,-500.0,0.00017943,2]
[405941260,1771431046901,-500.0,0.00018023,2]
[405941262,1771431046914,-720.0,0.00018437,2]
[405941264,1771431046922,-743.5267485,0.00018697,2]
[405941266,1771431046932,-500.0,0.00018969,2]
[405941267,1771431046941,-556.81246389,0.0002028,2]
[405941269,1771431046952,-307.18753611,0.0002028,2]
[405941271,1771431046961,-1047.0,0.00020306,10]
[405941273,1771431046970,-1000.0,0.00022308,10]
[405941275,1771431046979,-1345.58767154,0.00024438,2]
[405941277,1771431046988,-1000.0,0.00024539,10]
[405941279,1771431046997,-244.0,0.00024539,10]
[405941280,1771431047007,-486.65,0.00025105,14]
[405941282,1771431047015,-150.462,0.00026477,13]
[405941284,1771431047025,-1345.58767148,0.00026647,2]
[405941286,1771431047034,-1000.0,0.00026993,30]
[405941288,1771431047043,-492.0,0.00026993,30]
[405941290,1771431047051,-168.0,0.0002759,2]
[405941292,1771431047060,-168.0,0.00027592,2]
[405941294,1771431047069,-168.0,0.00027619,2]
[405941296,1771431047079,-168.0,0.00027783,2]
[405941297,1771431047088,-168.0,0.00027952,2]
[405941299,1771431047096,-168.0,0.00028159,2]
[405941301,1771431047106,-1345.58767148,0.00028856,2]
[405941303,1771431047115,-168.0,0.0002902,2]
[405941305,1771431047124,-168.0,0.00029065,2]
[405941307,1771431047133,-168.0,0.00029281,2]
[405941309,1771431047142,-1000.0,0.00029692,30]
[405941310,1771431047154,-791.0,0.00029692,30]
[405941312,1771431047163,-500.0,0.00029999,5]
[405941314,1771431047172,-500.0,0.00029999,2]
[405941316,1771431047181,-500.0,0.00029999,2]
[405941318,1771431047190,-1345.58767148,0.00031065,2]
[405941320,1771431047199,-189.40689134,0.00032164,2]
[405941321,1771431047207,-150.0,0.00032164,2]
[405941323,1771431047217,-150.0,0.00032164,2]
[405941325,1771431047227,-165.1231532,0.00032164,2]
[405941327,1771431047235,-233.09442873,0.00032164,2]
[405941329,1771431047245,-282.05897855,0.00032164,2]
[405941331,1771431047254,-500.0,0.00032164,2]
[405941332,1771431047263,-186.170805,0.00032219,2]
[405941334,1771431047271,-150.0,0.00032219,2]
[405941336,1771431047280,-500.0,0.00032219,2]
[405941338,1771431047289,-200.0,0.00032274,2]
[405941340,1771431047298,-500.0,0.00032274,2]
[405941342,1771431047307,-500.0,0.00032328,2]
[405941344,1771431047316,-538.81752924,0.0003238,2]
[405941345,1771431047325,-247.46547178,0.0003238,2]
[405941347,1771431047334,-445.43784921,0.0003238,2]
[405941349,1771431047343,-500.0,0.00032383,2]
[405941351,1771431047352,-165.70080039,0.00032412,2]
[405941353,1771431047362,-500.0,0.00032438,2]
[405941355,1771431047371,-500.0,0.00032493,2]
[405941357,1771431047380,-500.0,0.00032548,2]
[405941359,1771431047390,-500.0,0.00032602,2]
[405941361,1771431047401,-500.0,0.00032657,2]
[405941362,1771431047410,-1000.0,0.00032662,30]
[405941364,1771431047419,-1000.0,0.00032662,30]
[405941366,1771431047428,-471.92771069,0.00032712,2]
[405941368,1771431047440,-28.07228931,0.00032712,2]
[405941370,1771431047449,-500.0,0.00032766,2]
[405941372,1771431047458,-244.34327705,0.00032793,2]
[405941376,1771431047489,-725.52827558,0.00032793,2]
[405941378,1771431047498,-450.58515007,0.00032875,5]
[405941379,1771431047508,-207.83283857,0.00032875,2]
[405941502,1771431256442,5000.0,0.000156,120]
[405941542,1771432231555,-3591.8371523,0.00012729,2]
[405941543,1771432231564,-3591.8371523,0.00012988,2]
[405941544,1771432231574,-481.64329419,0.00013006,2]
[405941545,1771432231620,-718.35670581,0.00013006,2]
[405941546,1771432231630,-300.0,0.00013008,2]
[405941547,1771432231639,-300.0,0.00013008,2]
[405941548,1771432231649,-500.0,0.00013273,2]
[405941549,1771432231658,-500.0,0.00013273,2]
[405941550,1771432231667,-500.0,0.00013273,2]
[405941551,1771432231676,-190.84808815,0.00013699,2]
[405941552,1771432231686,-500.0,0.00013699,2]
[405941553,1771432231695,-188.96,0.000137,2]
[405941554,1771432231704,-8267.41581717,0.000137,2]
[405941567,1771432237834,-4237.11762725,0.00013563,2]
[405941594,1771432240021,-6640.08957753,0.00013563,2]
[405941596,1771432240032,-6922.08874214,0.00013563,2]
[405941598,1771432240042,-12154.2569526,0.000137,2]
[405941600,1771432240052,-4404.01492013,0.000137,2]
[405942060,1771432244624,-771.14628782,0.000137,2]
[405942062,1771432244635,-355.51999999,0.000137,2]
[405942064,1771432244651,-911.28889914,0.000137,2]
[405942066,1771432244660,-1000.0,0.00013821,2]
[405942068,1771432244669,-1000.0,0.00014247,2]
[405942070,1771432244678,-399.85900595,0.00014368,2]
[405942072,1771432244689,-488.26382338,0.00014795,2]
[405942171,1771432245564,-423.185,0.00014795,2]
[405942173,1771432245575,-282.92772607,0.00014795,2]
[405942176,1771432245587,-33.47444225,0.00014795,2]
[405942178,1771432245597,-500.0,0.00016438,2]
[405942180,1771432245606,-500.0,0.00016438,2]
[405942181,1771432245615,-250.0,0.00016819,2]
[405942183,1771432245626,-650.0,0.00017142,2]
[405942185,1771432245635,-743.5267485,0.00018684,2]
[405942188,1771432245644,-1207.64616573,0.00019501,2]
[405942204,1771432245778,-197.75410387,0.00019501,2]
[405942206,1771432245788,-1003.0,0.00021161,10]
[405942208,1771432245797,-500.0,0.00026847,2]
[405942210,1771432245806,-296.18252994,0.00027397,5]
[405942212,1771432245816,-252.58314908,0.00027397,5]
[405942214,1771432245825,-171.81203775,0.00028,5]
[405942216,1771432245835,-500.0,0.00029999,2]
[405942218,1771432245844,-8416.56,0.0003,30]
[405942220,1771432245853,-500.0,0.00030136,2]
[405942222,1771432245862,-8416.56,0.000309,30]
[405942224,1771432245871,-153.28108353,0.00031086,10]
[405942226,1771432245881,-151.0,0.0003141,2]
[405942228,1771432245891,-1957.856,0.0003141,2]
[405942230,1771432245900,-2030.296672,0.00031465,2]
[405942232,1771432245910,-2105.41764886,0.0003152,2]
[405942234,1771432245919,-2183.31810187,0.00031575,2]
[405942236,1771432245928,-500.0,0.00031584,2]
[405942239,1771432245938,-2264.10087164,0.0003163,2]
[405942242,1771432245947,-2439.54250343,0.00031685,2]
[405942245,1771432245956,-8416.56,0.000318,30]
[405942247,1771432245965,-1536.6505,0.000322,120]
[405942249,1771432245975,-376.80765081,0.00032219,2]
[405942251,1771432245985,-500.0,0.00032311,2]
[405942253,1771432245995,-165.7008004,0.00032412,2]
[405942255,1771432246005,-500.0,0.00032521,2]
[405942257,1771432246014,-500.0,0.00032531,2]
[405942259,1771432246024,-11159.12,0.0003268,10]
[405942261,1771432246032,-7694.77,0.0003269,10]
[405942263,1771432246042,-13390.95,0.0003269,10]
[405942265,1771432246051,-165.02211358,0.00032699,2]
[405942267,1771432246061,-2106.35423324,0.000327,120]
[405942623,1771433047179,216.17433744,0.000156,120]
[405942674,1771433204088,-213.70905121,0.00012998,2]
[405942727,1771433431675,-288.27037603,0.00012999,2]
[405942728,1771433431695,-230.95,0.00013,2]
[405942729,1771433431716,-300.0,0.00013272,2]
[405942730,1771433431726,-300.0,0.00013272,2]
[405942731,1771433431736,-3.80605019,0.00013272,2]
[405942732,1771433431748,-363.69361527,0.00013272,2]
[405942733,1771433431759,-832.50033454,0.00013272,2]
[405942734,1771433431769,-504.13955977,0.00013273,2]
[405942735,1771433431778,-501.71596197,0.00013273,2]
[405942736,1771433431788,-500.0,0.00013273,2]
[405942737,1771433431797,-500.0,0.00013273,2]
[405942738,1771433431807,-500.0,0.00013696,2]
[405942740,1771433431816,-500.0,0.00013696,2]
[405942742,1771433431826,-500.0,0.00013696,2]
[405942743,1771433431835,-174.23700379,0.00013696,2]
[405942744,1771433431845,-455.13062275,0.00013696,2]
[405942746,1771433431854,-500.0,0.00013696,2]
[405942748,1771433431864,-338.71763346,0.00013696,2]
[405942761,1771433437881,-161.28236654,0.00013696,2]
[405942762,1771433437891,-370.23324108,0.00013696,2]
[405942763,1771433437900,-500.0,0.00013696,2]
[405942764,1771433437910,-500.0,0.00013696,2]
[405942765,1771433437920,-500.0,0.00013696,2]
[405942766,1771433437932,-500.0,0.00013696,2]
[405942767,1771433437941,-500.0,0.00013696,2]
[405942768,1771433437953,-5525.52621678,0.00013696,2]
[405942769,1771433437964,-44474.47378322,0.00013696,2]
[405942770,1771433437973,-271.46634021,0.00013697,2]
[405942771,1771433437982,-500.0,0.00013698,2]
[405942773,1771433437992,-500.0,0.00013698,2]
[405942774,1771433438001,-500.0,0.00013698,2]
[405942775,1771433438011,-875.7194608,0.00013699,2]
[405942776,1771433438019,-193.04370743,0.00013699,2]
[405942777,1771433438028,-500.0,0.00013699,2]
[405942778,1771433438038,-173.34318746,0.00013699,2]
[405942779,1771433438047,-500.0,0.0001382,2]
[405942780,1771433438056,-1000.0,0.00013821,2]
[405942781,1771433438065,-911.34022662,0.00014368,2]
[405942782,1771433438074,-420.0,0.00014551,2]
[405942783,1771433438083,-802.0,0.00014599,2]
[405942784,1771433438093,-150.83218656,0.000156,2]
[405942785,1771433438102,-852.31,0.00016438,2]
[405942786,1771433438112,-852.31,0.00016438,2]
[405942787,1771433438121,-852.31,0.00016438,2]
[405942788,1771433438131,-4656.27984695,0.0001685,2]
[405942789,1771433438141,-743.5267485,0.00018581,2]
[405942790,1771433438150,-211.53785719,0.0002,2]
[405942791,1771433438160,-961.0,0.00021161,10]
[405942792,1771433438175,-160.44340106,0.00021506,2]
[405942793,1771433438185,-150.83218656,0.00021674,56]
[405942794,1771433438194,-293.0,0.00022726,2]
[405942795,1771433438204,-363.0,0.00022972,2]
[405942796,1771433438213,-634.0,0.00025942,2]
[405942797,1771433438222,-1381.762,0.00025942,2]
[405942798,1771433438231,-500.0,0.0002649,2]
[405942799,1771433438241,-852.31,0.00026572,2]
[405942800,1771433438251,-475.4525018,0.00026573,2]
[405942801,1771433438261,-2890.5663885,0.00026573,2]
[405942802,1771433438270,-500.0,0.00026764,2]
[405942803,1771433438279,-150.83218655,0.0002694,120]
[405942804,1771433438289,-500.0,0.00027038,2]
[405942805,1771433438298,-500.0,0.00027312,2]
[405942806,1771433438308,-169.0,0.00029652,2]
[405942807,1771433438317,-709.26136131,0.00029671,2]
[405942808,1771433438327,-2890.5663885,0.00029835,2]
[405942809,1771433438336,-5817.62,0.0002994,10]
[405942810,1771433438345,-7704.04,0.0002997,10]
[405942811,1771433438355,-852.31,0.00029979,2]
[405942812,1771433438364,-9244.84,0.0002998,10]
[405942813,1771433438373,-11093.81,0.0002999,10]
[405942814,1771433438382,-500.0,0.00029999,2]
[405942815,1771433438391,-852.31,0.00029999,2]
[405942816,1771433438404,-7504.7,0.0003,30]
[405942817,1771433438414,-169.0,0.00030069,2]
[405942818,1771433438423,-169.0,0.00030077,2]
[405942819,1771433438432,-169.0,0.00030125,2]
[405942820,1771433438441,-169.114,0.00030192,25]
[405942821,1771433438450,-12203.956434,0.00030236,2]
[405942822,1771433438459,-169.0,0.00030241,2]
[405942823,1771433438469,-151.0,0.00030246,7]
[405942824,1771433438479,-151.0,0.00030246,7]
[405942825,1771433438488,-151.0,0.00030246,7]
[405942826,1771433438501,-151.0,0.00030246,7]
[405942827,1771433438512,-3372.47,0.00030256,3]
[405942828,1771433438521,-542.0,0.00030256,3]
[405942829,1771433438530,-271.0,0.00030256,3]
[405942830,1771433438540,-151.0,0.00030266,7]
[405942831,1771433438549,-151.0,0.00030266,7]
[405942832,1771433438558,-151.0,0.00030266,7]
[405942833,1771433438567,-151.0,0.00030266,7]
[405942834,1771433438578,-5406.21832774,0.00030266,24]
[405942836,1771433438587,-5000.0,0.00030266,24]
[405942837,1771433438596,-170.0,0.00030277,7]
[405942838,1771433438605,-169.0,0.00030361,2]
[405942839,1771433438614,-169.0,0.00030378,2]
[405942840,1771433438623,-475.4525018,0.00030414,2]
[405942841,1771433438632,-169.0,0.00030482,7]
[405942842,1771433438641,-170.0,0.00030556,2]
[405942843,1771433438651,-169.0,0.00030719,2]
[405942844,1771433438660,-169.0,0.00030803,2]
[405942845,1771433438670,-169.0,0.00030826,2]
[405942846,1771433438679,-169.0,0.00030874,2]
[405942847,1771433438688,-852.31,0.00030889,2]
[405942848,1771433438697,-2168.02,0.0003089,3]
[405942849,1771433438707,-7504.7,0.000309,30]
[405942850,1771433438716,-172.0,0.00031104,2]
[405942852,1771433438726,-325.7460789,0.00031232,2]
[405942853,1771433438736,-813.04,0.00031272,3]
[405942855,1771433438746,-151.0,0.00031282,2]
[405942857,1771433438755,-151.0,0.00031282,2]
[405942858,1771433438765,-151.0,0.00031282,2]
[405942859,1771433438774,-151.0,0.00031282,2]
[405942860,1771433438783,-151.0,0.00031282,2]
[405942861,1771433438792,-151.0,0.00031282,2]
[405942862,1771433438802,-151.0,0.00031282,2]
[405942863,1771433438810,-151.0,0.00031282,2]
[405942864,1771433438819,-151.0,0.00031282,2]
[405942865,1771433438827,-151.0,0.00031282,2]
[405942866,1771433438837,-167.08630454,0.00031282,2]
[405942867,1771433438846,-169.0,0.00031387,2]
[405942868,1771433438855,-170.0,0.00031461,2]
[405942869,1771433438864,-6744.94,0.00031626,3]
[405942870,1771433438874,-743.5267485,0.00031626,3]
[405942871,1771433438882,-1084.0,0.00031626,3]
[405942872,1771433438892,-542.0,0.00031626,3]
[405942873,1771433438902,-510.32,0.00031626,2]
[405942874,1771433438911,-172.0,0.00031797,7]
[405942875,1771433438920,-852.31,0.00031799,2]
[405942876,1771433438929,-7504.7,0.000318,30]
[405942877,1771433438938,-169.0,0.00031858,2]
[405942878,1771433438948,-169.0,0.00031931,2]
[405942879,1771433438957,-170.0,0.00031985,2]
[405942880,1771433438966,-169.0,0.00032155,7]
[405942881,1771433438975,-170.0,0.00032163,2]
[405942882,1771433438984,-12203.956434,0.00032198,2]
[405942883,1771433438993,-1084.01,0.00032198,3]
[405942884,1771433439003,-1619.89367112,0.000322,2]
[405942885,1771433439012,-2879.81097088,0.000322,2]
[405942886,1771433439022,-179.98818568,0.00032208,2]
[405942887,1771433439031,-719.95274272,0.00032208,2]
[405942888,1771433439040,-165.91352996,0.00032208,2]
[405942889,1771433439049,-663.65411983,0.00032208,2]
[405942890,1771433439058,-1493.22176963,0.00032208,2]
[405942891,1771433439068,-2654.61647934,0.00032208,2]
[405942892,1771433439077,-151.0,0.00032208,7]
[405942893,1771433439087,-151.0,0.00032208,7]
[405942894,1771433439097,-151.0,0.00032208,7]
[405942895,1771433439106,-151.0,0.00032208,7]
[405942896,1771433439115,-852.31,0.00032259,2]
[405942897,1771433439125,-4336.04,0.0003226,3]
[405942898,1771433439135,-151.0,0.0003226,7]
[405942899,1771433439144,-151.0,0.0003226,7]
[405942900,1771433439153,-151.0,0.0003226,7]
[405942901,1771433439162,-198.793735,0.0003226,7]
[405942902,1771433439172,-190.6295898,0.00032412,2]
[405942903,1771433439181,-169.0,0.00032425,2]
[405942904,1771433439191,-150.0,0.00032438,2]
[405942905,1771433439200,-150.0,0.00032493,2]
[405942906,1771433439210,-150.0,0.00032548,2]
[405942907,1771433439220,-525.76,0.00032591,2]
[405942908,1771433439229,-150.0,0.00032602,2]
[405942909,1771433439239,-169.0,0.00032622,2]
[405942910,1771433439249,-150.0,0.00032657,2]
[405942911,1771433439259,-7504.7,0.000327,120]
[405942912,1771433439269,-250.0,0.00032712,2]
[405942913,1771433439279,-852.31,0.00032718,2]
[405942914,1771433439288,-500.0,0.00032719,2]
[405942915,1771433439297,-1788.729079,0.0003272,7]
[405942916,1771433439306,-1000.0,0.0003274,7]
[405942917,1771433439315,-1000.0,0.0003276,7]
[405942918,1771433439324,-487.0,0.0003276,2]
[405942919,1771433439333,-487.0,0.0003276,2]
[405942920,1771433439343,-487.0,0.0003276,2]
[405942921,1771433439352,-487.0,0.0003276,2]
[405942922,1771433439361,-487.0,0.0003276,2]
[405942923,1771433439371,-487.0,0.0003276,2]
[405942924,1771433439380,-487.0,0.0003276,2]
[405942925,1771433439390,-487.0,0.0003276,2]
[405942926,1771433439399,-487.0,0.0003276,2]
[405942927,1771433439411,-610.89,0.0003276,2]
[405942928,1771433439420,-1000.0,0.0003278,7]
[405942929,1771433439429,-1231.156537,0.0003278,7]
[405942930,1771433439438,-500.0,0.000328,2]
[405942931,1771433439447,-500.0,0.000328,2]
[405942932,1771433439457,-500.0,0.000328,2]
[405942934,1771433439466,-1000.0,0.000328,7]
[405942935,1771433439475,-1000.0,0.000328,7]
[405942936,1771433439485,-151.0,0.000328,7]
[405942937,1771433439494,-151.0,0.000328,7]
[405942938,1771433439507,-151.0,0.000328,7]
[405942939,1771433439516,-500.0,0.00032815,2]
[405942940,1771433439525,-1828.32508946,0.00032815,2]
[405942941,1771433439535,-1184.03990001,0.00032815,2]
[405942942,1771433439545,-12203.956434,0.00032864,2]
[405942943,1771433439554,-12203.956434,0.00032867,2]
[405942944,1771433439563,-852.31,0.00032872,2]
[405942945,1771433439573,-852.31,0.00032873,2]
[405942946,1771433439582,-250.0,0.00032874,5]
[405942947,1771433439591,-229.41324918,0.00032874,5]
[405942948,1771433439600,-750.0,0.00032874,5]
[405942949,1771433439609,-750.0,0.00032874,5]
[405942951,1771433439618,-250.0,0.00032874,5]
[405942953,1771433439627,-250.0,0.00032874,5]
[405942954,1771433439637,-250.0,0.00032874,5]
[405942955,1771433439646,-250.0,0.00032874,5]
[405942956,1771433439657,-500.0,0.00032874,5]
[405942958,1771433439666,-162.380719,0.00032874,5]
[405942959,1771433439675,-250.0,0.00032874,5]
[405942960,1771433439685,-250.0,0.00032874,5]
[405942961,1771433439695,-250.0,0.00032874,5]
[405942962,1771433439705,-500.0,0.00032874,5]
[405942963,1771433439715,-168.3888056,0.00032874,5]
[405942964,1771433439725,-250.0,0.00032874,5]
[405942965,1771433439735,-250.0,0.00032874,5]
[405942966,1771433439744,-250.0,0.00032874,5]
[405942967,1771433439754,-500.0,0.00032874,5]
[405942968,1771433439767,-174.61919141,0.00032874,5]
[405942969,1771433439777,-250.0,0.00032874,5]
[405942970,1771433439787,-326.03778922,0.00032874,5]
[405942971,1771433439796,-250.0,0.00032874,5]
[405942972,1771433439805,-500.0,0.00032874,5]
[405942973,1771433439815,-181.08010149,0.00032874,5]
[405942974,1771433439824,-250.0,0.00032874,5]
[405942975,1771433439833,-250.0,0.00032874,5]
[405942976,1771433439842,-500.0,0.00032874,5]
[405942977,1771433439850,-187.78006525,0.00032874,5]
[405942978,1771433439859,-250.0,0.00032874,5]
[405942979,1771433439869,-250.0,0.00032874,5]
[405942980,1771433439878,-500.0,0.00032874,5]
[405942981,1771433439887,-194.72792766,0.00032874,5]
[405942982,1771433439996,-250.0,0.00032874,5]
[405942983,1771433440005,-259.92281873,0.00032874,5]
[405942984,1771433440015,-500.0,0.00032874,5]
[405942985,1771433440024,-201.93286099,0.00032874,5]
[405942986,1771433440033,-250.0,0.00032874,5]
[405942988,1771433440042,-250.0,0.00032874,5]
[405942990,1771433440051,-500.0,0.00032874,5]
[405942991,1771433440060,-209.40437684,0.00032874,5]
[405942993,1771433440069,-250.0,0.00032874,5]
[405942995,1771433440078,-250.0,0.00032874,5]
[405942997,1771433440087,-217.15233878,0.00032874,5]
[405942999,1771433440096,-250.0,0.00032874,5]
[405943001,1771433440106,-2000.0,0.00032874,5]
[405943003,1771433440115,-500.0,0.00032874,5]
[405943005,1771433440124,-250.0,0.00032874,5]
[405943007,1771433440133,-225.18697532,0.00032874,5]
[405943009,1771433440142,-211.37381251,0.00032874,5]
[405943011,1771433440151,-500.0,0.00032874,5]
[405943013,1771433440161,-250.0,0.00032874,5]
[405943015,1771433440171,-233.51889341,0.00032874,5]
[405943017,1771433440181,-250.0,0.00032874,5]
[405943019,1771433440191,-500.0,0.00032874,5]
[405943021,1771433440200,-250.0,0.00032874,5]
[405943023,1771433440210,-242.15909246,0.00032874,5]
[405943026,1771433440220,-250.0,0.00032874,5]
[405943027,1771433440230,-500.0,0.00032874,5]
[405943030,1771433440239,-250.0,0.00032874,5]
[405943032,1771433440249,-251.11897888,0.00032874,5]
[405943034,1771433440259,-500.0,0.00032874,5]
[405943036,1771433440271,-341.06032845,0.00032874,5]
[405943038,1771433440280,-260.4103811,0.00032874,5]
[405943039,1771433440290,-500.0,0.00032874,5]
[405943042,1771433440299,-250.0,0.00032874,5]
[405943045,1771433440309,-270.0455652,0.00032874,5]
[405943047,1771433440318,-500.0,0.00032874,5]
[405943048,1771433440328,-250.0,0.00032874,5]
[405943051,1771433440337,-280.03725112,0.00032874,5]
[405943053,1771433440347,-500.0,0.00032874,5]
[405943054,1771433440357,-250.0,0.00032874,5]
[405943056,1771433440366,-290.39862941,0.00032874,5]
[405943058,1771433440374,-250.0,0.00032874,5]
[405943060,1771433440384,-500.0,0.00032874,5]
[405943062,1771433440393,-250.0,0.00032874,5]
[405943064,1771433440402,-327.48250076,0.00032874,5]
[405943066,1771433440412,-250.0,0.00032874,5]
[405943068,1771433440422,-500.0,0.00032874,5]
[405943070,1771433440430,-336.40553352,0.00032874,5]
[405943072,1771433440439,-250.0,0.00032874,5]
[405943074,1771433440448,-500.0,0.00032874,5]
[405943076,1771433440457,-250.0,0.00032874,5]
[405943078,1771433440466,-250.0,0.00032874,5]
[405943080,1771433440475,-250.0,0.00032874,5]
[405943082,1771433440484,-250.0,0.00032874,5]
[405943084,1771433440494,-250.0,0.00032874,5]
[405943086,1771433440506,-250.0,0.00032874,5]
[405943088,1771433440515,-250.0,0.00032874,5]
[405943090,1771433440524,-250.0,0.00032874,5]
[405943092,1771433440533,-250.0,0.00032874,5]
[405943094,1771433440543,-500.0,0.00032875,2]
[405943096,1771433440552,-500.0,0.00032875,2]
[405943098,1771433440561,-852.31,0.00032875,2]
[405943100,1771433440571,-518.84482013,0.00032876,19]
[405943102,1771433440580,-508.20193604,0.00032876,7]
[405943104,1771433440590,-500.0,0.00032876,19]
[405943106,1771433440600,-1500.15,0.00032876,19]
[405943108,1771433440609,-468.46173165,0.00032876,7]
[405943110,1771433440618,-152.0,0.00032876,19]
[405943112,1771433440627,-187.83290785,0.00032876,19]
[405943114,1771433440636,-933.13,0.00032876,7]
[405943116,1771433440645,-500.0,0.00032876,19]
[405943118,1771433440655,-500.0,0.00032876,19]
[405943120,1771433440664,-475.135348,0.00032876,19]
[405943122,1771433440673,-500.0,0.00032876,19]
[405943124,1771433440682,-500.0,0.00032876,7]
[405943126,1771433440692,-500.0,0.00032876,19]
[405943128,1771433440701,-2890.96,0.00032876,120]
[405943130,1771433440711,-194.48509057,0.00032876,19]
[405943132,1771433440720,-1868.21,0.00032876,19]